fUST/lending_fUST_20260116
["ID","MTS","AMOUNT","RATE_DAILY","PERIOD"]
[402185070,1768575041233,-2000.0,0.00022669,7]
[402185073,1768575041245,-2000.0,0.00022677,7]
[402185075,1768575041257,-2000.0,0.00022683,7]
[402185077,1768575041269,-2000.0,0.00022686,7]
[402185079,1768575041282,-2000.0,0.00022695,7]
[402185082,1768575041294,-2000.0,0.00022704,7]
[402185084,1768575041307,-2000.0,0.00022713,7]
[402185086,1768575041320,-2000.0,0.00022721,7]
[402185089,1768575041332,-2000.0,0.0002273,7]
[402185091,1768575041343,-4028.46804828,0.0002273,7]
[402185093,1768575041358,-2000.0,0.00022739,7]
[402185096,1768575041369,-500.0,0.0002274,5]
[402185098,1768575041381,-1041.66666667,0.00023,3]
[402185100,1768575041393,-500.0,0.00023014,5]
[402185102,1768575041404,-450.0,0.00023014,2]
[402185104,1768575041416,-261.16480415,0.00023014,2]
[402185107,1768575041429,-350.0,0.00023014,2]
[402185109,1768575041441,-671.42800805,0.00023086,30]
[402185111,1768575041454,-1000.0,0.000231,7]
[402185114,1768575041467,-2000.0,0.0002314,7]
[402185116,1768575041479,-493.23310299,0.00023141,2]
[402185118,1768575041491,-2398.4119403,0.00023141,2]
[402185120,1768575041502,-1591.0,0.00023168,10]
[402185122,1768575041514,-542.0,0.00023168,10]
[402185125,1768575041526,-916.0,0.00023168,10]
[402185127,1768575041538,-196.0,0.00023233,9]
[402185129,1768575041550,-500.0,0.00023288,5]
[402185132,1768575041562,-671.42800805,0.00023442,30]
[402185134,1768575041573,-500.0,0.00023562,5]
[402185136,1768575041585,-7718.13585009,0.00023562,2]
[402185138,1768575041596,-600.0,0.00023562,2]
[402185141,1768575041610,-473.17242877,0.00023562,2]
[402185143,1768575041621,-2000.0,0.00023598,7]
[402185145,1768575041634,-208.52,0.000236,7]
[402185148,1768575041646,-2487.15318209,0.00023689,2]
[402185150,1768575041658,-3829.32953526,0.00023767,2]
[402185152,1768575041670,-671.42800805,0.00023798,30]
[402185153,1768575041682,-500.0,0.00023836,5]
[402185156,1768575041694,-1041.66666667,0.00024,7]
[402185158,1768575041705,-2000.0,0.00024055,7]
[402185160,1768575041718,-160.43,0.00024093,2]
[402185162,1768575041730,-158.0,0.000241,14]
[402185165,1768575041742,-158.0,0.000241,15]
[402185167,1768575041754,-500.0,0.0002411,5]
[402185169,1768575041765,-750.0,0.0002411,2]
[402185171,1768575041778,-671.42800805,0.00024154,30]
[402185174,1768575041789,-448.174166,0.00024197,30]
[402185176,1768575041801,-170.317,0.00024204,2]
[402185178,1768575041813,-2147.0,0.00024204,2]
[402185180,1768575041828,-1367.0,0.00024204,2]
[402185182,1768575041846,-2579.17784983,0.00024237,2]
[402185185,1768575041858,-198.0,0.00024329,12]
[402185186,1768575041871,-506.18431804,0.00024329,2]
[402185187,1768575041883,-160.0,0.0002435,3]
[402185188,1768575041896,-500.0,0.00024384,5]
[402185189,1768575041908,-671.42800805,0.0002451,30]
[402185190,1768575041921,-2000.0,0.00024512,7]
[402185191,1768575041933,-1065.0,0.0002455,7]
[402185192,1768575041945,-500.0,0.00024658,5]
[402185193,1768575041958,-900.0,0.00024658,2]
[402185194,1768575041971,-500.0,0.00024658,2]
[402185195,1768575041984,-176.42,0.000247,7]
[402185196,1768575041995,-18434.41,0.000247,2]
[402185197,1768575042008,-10654.24,0.000247,3]
[402185198,1768575042020,-2674.60743027,0.00024785,2]
[402185199,1768575042032,-500.0,0.00024795,2]
[402185200,1768575042044,-7875.96755551,0.00024832,2]
[402185201,1768575042056,-671.42800805,0.00024866,30]
[402185202,1768575042069,-601949.728948,0.000249,2]
[402185203,1768575042081,-500.0,0.00024932,5]
[402185204,1768575042095,-500.0,0.00024932,2]
[402185205,1768575042108,-2000.0,0.0002497,7]
[402185206,1768575042119,-1210.924005,0.0002498,5]
[402185207,1768575042131,-500.0,0.00025,2]
[402185208,1768575042144,-500.0,0.00025,2]
[402185209,1768575042156,-500.0,0.00025,2]
[402185210,1768575042168,-501.9572,0.00025,2]
[402185211,1768575042180,-184.0,0.00025,7]
[402185212,1768575042192,-168.0,0.00025,7]
[402185213,1768575042204,-200.0,0.00025,17]
[402185214,1768575042216,-1041.66666667,0.00025,30]
[402185215,1768575042228,-1000.0,0.00025,5]
[402185216,1768575042240,-293.32899138,0.00025,30]
[402185217,1768575042252,-8775.9118974,0.00025042,3]
[402185218,1768575042264,-5000.0,0.00025042,2]
[402185219,1768575042277,-5000.0,0.00025042,2]
[402185220,1768575042289,-5000.0,0.00025042,3]
[402185221,1768575042300,-5000.0,0.00025042,2]
[402185222,1768575042312,-500.0,0.00025069,2]
[402185223,1768575042324,-1000.0,0.000251,7]
[402185224,1768575042337,-4808.09,0.00025205,2]
[402185225,1768575042348,-3000.0,0.00025205,7]
[402185226,1768575042360,-500.0,0.00025205,5]
[402185227,1768575042372,-250.0,0.00025205,2]
[402185228,1768575042384,-287.94961945,0.00025205,2]
[402185229,1768575042395,-500.0,0.00025206,2]
[402185230,1768575042407,-671.42800805,0.00025222,30]
[402185231,1768575042419,-1041.66666667,0.000253,7]
[402185232,1768575042431,-2773.56790519,0.00025333,2]
[402185233,1768575042443,-500.0,0.00025343,2]
[402185234,1768575042454,-179.718963,0.00025352,30]
[402185235,1768575042467,-199.0,0.00025425,16]
[402185236,1768575042479,-2000.0,0.00025427,7]
[402185237,1768575042492,-500.0,0.0002548,2]
[402185238,1768575042504,-3829.32953526,0.00025532,2]
[402185239,1768575042515,-7875.96755551,0.00025562,2]
[402185240,1768575042527,-671.42800805,0.00025578,30]
[402185241,1768575042539,-500.0,0.00025617,2]
[402185242,1768575042551,-208.52,0.000257,7]
[402185243,1768575042563,-350.0,0.00025753,2]
[402185244,1768575042575,-500.0,0.00025754,2]
[402185245,1768575042587,-158.0,0.000258,20]
[402185246,1768575042599,-158.0,0.000258,20]
[402185247,1768575042610,-2876.18991768,0.00025881,2]
[402185248,1768575042623,-2000.0,0.00025884,7]
[402185249,1768575042634,-168.0,0.0002589,7]
[402185250,1768575042644,-500.0,0.00025891,2]
[402185251,1768575042653,-671.42800805,0.00025934,30]
[402185252,1768575042662,-158.0,0.00026,30]
[402185253,1768575042671,-1041.66666667,0.00026,7]
[402185254,1768575042680,-2000.0,0.00026,2]
[402185258,1768575042988,-1023.34950615,0.00026,2]
[402185259,1768575043018,-500.0,0.00026028,2]
[402185261,1768575043039,-200.0,0.00026103,120]
[402185262,1768575043048,-500.0,0.00026165,2]
[402185263,1768575043058,-160.43,0.00026289,2]
[402185264,1768575043067,-671.42800805,0.0002629,30]
[402185265,1768575043076,-7875.96755551,0.00026292,2]
[402185266,1768575043087,-3000.0,0.00026301,7]
[402185267,1768575043099,-450.0,0.00026301,2]
[402185268,1768575043108,-500.0,0.00026302,2]
[402185269,1768575043118,-549.98873018,0.00026329,2]
[402185270,1768575043127,-2000.0,0.00026342,7]
[402185271,1768575043137,-500.0,0.00026397,120]
[402185272,1768575043147,-500.0,0.00026397,120]
[402185273,1768575043157,-500.0,0.00026397,120]
[402185274,1768575043167,-500.0,0.00026397,120]
[402185275,1768575043177,-500.0,0.00026397,120]
[402185276,1768575043186,-500.0,0.00026397,120]
[402185278,1768575043196,-500.0,0.00026397,120]
[402185279,1768575043205,-500.0,0.00026397,120]
[402185280,1768575043214,-500.0,0.00026397,120]
[402185281,1768575043224,-500.0,0.00026397,120]
[402185282,1768575043233,-500.0,0.00026397,120]
[402185283,1768575043242,-500.0,0.00026397,120]
[402185284,1768575043251,-500.0,0.00026397,120]
[402185285,1768575043260,-500.0,0.00026397,120]
[402185286,1768575043269,-500.0,0.00026397,120]
[402185287,1768575043278,-500.0,0.00026397,120]
[402185288,1768575043286,-500.0,0.00026397,120]
[402185289,1768575043295,-500.0,0.00026397,120]
[402185290,1768575043304,-500.0,0.00026397,120]
[402185291,1768575043313,-524.16,0.00026397,120]
[402185292,1768575043322,-500.0,0.00026397,120]
[402185293,1768575043331,-500.0,0.00026397,120]
[402185294,1768575043339,-500.0,0.00026397,120]
[402185295,1768575043348,-500.0,0.00026397,120]
[402185296,1768575043357,-500.0,0.00026397,120]
[402185297,1768575043366,-500.0,0.00026397,120]
[402185298,1768575043375,-500.0,0.00026397,120]
[402185299,1768575043384,-500.0,0.00026397,120]
[402185300,1768575043392,-500.0,0.00026397,120]
[402185301,1768575043401,-500.0,0.00026397,120]
[402185302,1768575043410,-500.0,0.00026397,120]
[402185303,1768575043420,-500.0,0.00026397,120]
[402185304,1768575043429,-500.0,0.00026397,120]
[402185305,1768575043442,-500.0,0.00026397,120]
[402185306,1768575043451,-500.0,0.00026397,120]
[402185307,1768575043461,-500.0,0.00026397,120]
[402185308,1768575043470,-500.0,0.00026397,120]
[402185309,1768575043479,-500.0,0.00026397,120]
[402185310,1768575043488,-500.0,0.00026397,120]
[402185311,1768575043497,-500.0,0.00026397,120]
[402185313,1768575043506,-500.0,0.00026397,120]
[402185314,1768575043515,-500.0,0.00026397,120]
[402185316,1768575043525,-500.0,0.00026397,120]
[402185317,1768575043534,-500.0,0.00026397,120]
[402185318,1768575043543,-500.0,0.00026397,120]
[402185320,1768575043552,-500.0,0.00026397,120]
[402185322,1768575043561,-500.0,0.00026397,120]
[402185323,1768575043570,-500.0,0.00026397,120]
[402185324,1768575043579,-500.0,0.00026397,120]
[402185325,1768575043588,-500.0,0.00026397,120]
[402185326,1768575043597,-500.0,0.00026397,120]
[402185327,1768575043606,-500.0,0.00026397,120]
[402185328,1768575043615,-500.0,0.00026397,120]
[402185329,1768575043624,-500.0,0.00026397,120]
[402185330,1768575043634,-500.0,0.00026397,120]
[402185331,1768575043643,-500.0,0.00026397,120]
[402185332,1768575043652,-500.0,0.00026397,120]
[402185333,1768575043662,-500.0,0.00026397,120]
[402185334,1768575043671,-500.0,0.00026397,120]
[402185335,1768575043681,-500.0,0.00026397,120]
[402185336,1768575043691,-500.0,0.00026397,120]
[402185337,1768575043701,-500.0,0.00026397,120]
[402185338,1768575043710,-500.0,0.00026397,120]
[402185339,1768575043720,-500.0,0.00026397,120]
[402185340,1768575043729,-500.0,0.00026397,120]
[402185341,1768575043738,-500.0,0.00026397,120]
[402185342,1768575043747,-500.0,0.00026397,120]
[402185343,1768575043756,-500.0,0.00026397,120]
[402185344,1768575043764,-500.0,0.00026397,120]
[402185345,1768575043773,-500.0,0.00026397,120]
[402185346,1768575043782,-500.0,0.00026397,120]
[402185347,1768575043791,-500.0,0.00026397,120]
[402185348,1768575043799,-500.0,0.00026397,120]
[402185349,1768575043808,-500.0,0.00026397,120]
[402185350,1768575043817,-500.0,0.00026397,120]
[402185351,1768575043826,-500.0,0.00026397,120]
[402185352,1768575043835,-500.0,0.00026397,120]
[402185353,1768575043844,-500.0,0.00026397,120]
[402185354,1768575043852,-500.0,0.00026397,120]
[402185355,1768575043862,-500.0,0.00026397,120]
[402185356,1768575043871,-500.0,0.00026397,120]
[402185357,1768575043881,-500.0,0.00026397,120]
[402185358,1768575043890,-500.0,0.00026397,120]
[402185359,1768575043900,-500.0,0.00026397,120]
[402185360,1768575043909,-500.0,0.00026397,120]
[402185361,1768575043918,-500.0,0.00026397,120]
[402185362,1768575043928,-500.0,0.00026397,120]
[402185363,1768575043937,-500.0,0.00026397,120]
[402185364,1768575043946,-500.0,0.00026397,120]
[402185365,1768575043955,-500.0,0.00026397,120]
[402185366,1768575043964,-500.0,0.00026397,120]
[402185367,1768575043973,-500.0,0.00026397,120]
[402185368,1768575043982,-500.0,0.00026397,120]
[402185369,1768575043991,-500.0,0.00026397,120]
[402185370,1768575044000,-500.0,0.00026397,120]
[402185371,1768575044010,-500.0,0.00026397,120]
[402185372,1768575044019,-500.0,0.00026397,120]
[402185373,1768575044028,-500.0,0.00026397,120]
[402185374,1768575044037,-500.0,0.00026397,120]
[402185375,1768575044046,-500.0,0.00026397,120]
[402185376,1768575044056,-2982.60894464,0.00026429,2]
[402185377,1768575044065,-500.0,0.00026439,2]
[402185378,1768575044074,-200.0,0.00026521,20]
[402185379,1768575044083,-6834.8927077,0.00026575,2]
[402185380,1768575044094,-500.0,0.00026576,2]
[402185381,1768575044103,-3054.34,0.000266,14]
[402185382,1768575044113,-160.43,0.00026645,2]
[402185383,1768575044123,-671.42800805,0.00026646,30]
[402185384,1768575044133,-2663.56,0.000267,3]
[402185385,1768575044142,-366.37699396,0.00026713,2]
[402185386,1768575044151,-2000.0,0.00026799,7]
[402185387,1768575044161,-4808.09,0.00026849,4]
[402185388,1768575044170,-550.0,0.00026849,2]
[402185389,1768575044179,-456043.88,0.000269,5]
[402185390,1768575044189,-1001.08,0.000269,5]
[402185391,1768575044198,-100116.52,0.000269,5]
[402185392,1768575044207,-3092.96547559,0.00026977,2]
[402185393,1768575044217,-177.0,0.00027,7]
[402185394,1768575044227,-176.42,0.00027,7]
[402185395,1768575044236,-18434.41,0.00027,2]
[402185396,1768575044246,-116715.06023896,0.00027,5]
[402185397,1768575044255,-208.52,0.00027,7]
[402185398,1768575044264,-1020.0,0.00027,2]
[402185399,1768575044274,-200.0,0.00027,120]
[402185400,1768575044283,-671.42800805,0.00027002,30]
[402185401,1768575044291,-7875.96755551,0.00027021,2]
[402185402,1768575044300,-475.0,0.00027123,120]
[402185403,1768575044310,-475.0,0.00027123,120]
[402185404,1768575044319,-475.0,0.00027123,120]
[402185405,1768575044328,-475.0,0.00027123,120]
[402185406,1768575044337,-1000.0,0.000272,120]
[402185407,1768575044346,-2147.0,0.00027204,2]
[402185408,1768575044355,-1367.0,0.00027204,2]
[402185409,1768575044364,-2000.0,0.00027256,7]
[402185410,1768575044373,-3142.1077477,0.00027295,2]
[402185411,1768575044382,-156.4363332,0.00027295,2]
[402185412,1768575044391,-10000.0,0.00027297,2]
[402185413,1768575044399,-3829.32953526,0.00027297,2]
[402185414,1768575044409,-160.0,0.000273,120]
[402185415,1768575044417,-671.42800805,0.00027357,30]
[402185416,1768575044426,-159.0,0.0002739,120]
[402185417,1768575044436,-2449.0,0.0002739,120]
[402185418,1768575044445,-2000.0,0.0002739,120]
[402185419,1768575044454,-500.0,0.00027393,10]
[402185420,1768575044464,-5000.0,0.00027395,30]
[402185421,1768575044474,-5000.0,0.00027395,30]
[402185422,1768575044483,-1562.38254651,0.00027397,120]
[402185423,1768575044492,-158.848642,0.00027397,120]
[402185424,1768575044501,-158.848642,0.00027397,120]
[402185425,1768575044510,-158.848642,0.00027397,120]
[402185426,1768575044518,-158.848642,0.00027397,120]
[402185427,1768575044527,-158.848642,0.00027397,120]
[402185428,1768575044536,-172.552376,0.00027397,120]
[402185429,1768575044545,-172.552376,0.00027397,120]
[402185430,1768575044553,-172.552376,0.00027397,120]
[402185431,1768575044562,-172.552376,0.00027397,120]
[402185432,1768575044572,-151.0,0.00027397,5]
[402185433,1768575044581,-270.10822346,0.00027397,120]
[402185434,1768575044590,-500.0,0.00027397,120]
[402185435,1768575044599,-500.0,0.00027397,120]
[402185436,1768575044608,-500.0,0.00027397,120]
[402185437,1768575044617,-500.0,0.00027397,120]
[402185438,1768575044626,-500.0,0.00027397,120]
[402185439,1768575044634,-500.0,0.00027397,120]
[402185440,1768575044643,-500.0,0.00027397,120]
[402185441,1768575044652,-500.0,0.00027397,120]
[402185442,1768575044661,-500.0,0.00027397,120]
[402185443,1768575044671,-500.0,0.00027397,120]
[402185444,1768575044680,-500.0,0.00027397,120]
[402185445,1768575044689,-500.0,0.00027397,120]
[402185446,1768575044698,-500.0,0.00027397,120]
[402185447,1768575044706,-500.0,0.00027397,120]
[402185448,1768575044715,-500.0,0.00027397,120]
[402185449,1768575044725,-500.0,0.00027397,120]
[402185450,1768575044734,-500.0,0.00027397,120]
[402185451,1768575044743,-500.0,0.00027397,120]
[402185452,1768575044752,-500.0,0.00027397,120]
[402185453,1768575044761,-500.0,0.00027397,120]
[402185454,1768575044770,-500.0,0.00027397,120]
[402185455,1768575044779,-540.76160659,0.00027397,120]
[402185456,1768575044788,-500.0,0.00027397,120]
[402185457,1768575044797,-543.61640008,0.00027397,120]
[402185458,1768575044806,-500.0,0.00027397,120]
[402185459,1768575044816,-500.0,0.00027397,120]
[402185460,1768575044825,-500.0,0.00027397,120]
[402185461,1768575044834,-500.0,0.00027397,120]
[402185462,1768575044843,-500.0,0.00027397,120]
[402185463,1768575044853,-500.0,0.00027397,120]
[402185464,1768575044862,-500.0,0.00027397,120]
[402185465,1768575044871,-500.0,0.00027397,120]
[402185466,1768575044879,-500.0,0.00027397,120]
[402185467,1768575044888,-500.0,0.00027397,120]
[402185468,1768575044897,-500.0,0.00027397,120]
[402185469,1768575044906,-500.0,0.00027397,120]
[402185470,1768575044916,-326.22,0.00027397,120]
[402185471,1768575044925,-500.0,0.00027397,120]
[402185472,1768575044934,-500.0,0.00027397,120]
[402185473,1768575044944,-500.0,0.00027397,120]
[402185474,1768575044954,-500.0,0.00027397,120]
[402185475,1768575044963,-590.19269095,0.00027397,120]
[402185476,1768575044974,-500.0,0.00027397,120]
[402185477,1768575044984,-500.0,0.00027397,120]
[402185478,1768575044993,-500.0,0.00027397,120]
[402185479,1768575045002,-500.0,0.00027397,120]
[402185480,1768575045011,-500.0,0.00027397,120]
[402185481,1768575045020,-500.0,0.00027397,120]
[402185482,1768575045031,-500.0,0.00027397,120]
[402185483,1768575045041,-500.0,0.00027397,120]
[402185484,1768575045050,-500.0,0.00027397,120]
[402185485,1768575045060,-500.0,0.00027397,120]
[402185486,1768575045069,-500.0,0.00027397,120]
[402185487,1768575045079,-500.0,0.00027397,120]
[402185488,1768575045089,-400.74469815,0.00027397,120]
[402185489,1768575045100,-500.0,0.00027397,120]
[402185490,1768575045110,-500.0,0.00027397,120]
[402185491,1768575045120,-500.0,0.00027397,120]
[402185492,1768575045129,-500.0,0.00027397,120]
[402185493,1768575045141,-500.0,0.00027397,120]
[402185494,1768575045151,-500.0,0.00027397,120]
[402185495,1768575045161,-642.84381734,0.00027397,120]
[402185496,1768575045171,-756.59,0.00027397,120]
[402185497,1768575045180,-756.59,0.00027397,120]
[402185498,1768575045190,-756.59,0.00027397,120]
[402185499,1768575045199,-756.59,0.00027397,120]
[402185500,1768575045208,-756.59,0.00027397,120]
[402185501,1768575045218,-756.59,0.00027397,120]
[402185502,1768575045227,-756.59,0.00027397,120]
[402185503,1768575045236,-756.59,0.00027397,120]
[402185504,1768575045247,-756.59,0.00027397,120]
[402185505,1768575045257,-756.59,0.00027397,120]
[402185506,1768575045266,-756.59,0.00027397,120]
[402185507,1768575045276,-756.59,0.00027397,120]
[402185508,1768575045285,-756.59,0.00027397,120]
[402185509,1768575045294,-756.59,0.00027397,120]
[402185510,1768575045303,-756.59,0.00027397,120]
[402185511,1768575045312,-756.59,0.00027397,120]
[402185512,1768575045321,-756.59,0.00027397,120]
[402185513,1768575045331,-756.59,0.00027397,120]
[402185514,1768575045340,-756.59,0.00027397,120]
[402185515,1768575045349,-756.59,0.00027397,120]
[402185516,1768575045359,-756.59,0.00027397,120]
[402185517,1768575045368,-756.59,0.00027397,120]
[402185518,1768575045377,-756.59,0.00027397,120]
[402185519,1768575045387,-756.6338444,0.00027397,120]
[402185520,1768575045396,-500.0,0.00027397,120]
[402185521,1768575045406,-500.0,0.00027397,120]
[402185522,1768575045416,-500.0,0.00027397,120]
[402185523,1768575045426,-500.0,0.00027397,120]
[402185524,1768575045435,-500.0,0.00027397,120]
[402185525,1768575045445,-500.0,0.00027397,120]
[402185526,1768575045455,-500.0,0.00027397,120]
[402185527,1768575045464,-500.0,0.00027397,120]
[402185528,1768575045474,-500.0,0.00027397,120]
[402185529,1768575045484,-500.0,0.00027397,120]
[402185530,1768575045493,-500.0,0.00027397,120]
[402185531,1768575045503,-500.0,0.00027397,120]
[402185532,1768575045512,-500.0,0.00027397,120]
[402185533,1768575045522,-500.0,0.00027397,120]
[402185534,1768575045531,-500.0,0.00027397,120]
[402185535,1768575045541,-267.32086073,0.00027397,120]
[402185536,1768575045551,-510.77753586,0.00027397,120]
[402185537,1768575045561,-500.0,0.00027397,120]
[402185538,1768575045570,-500.0,0.00027397,120]
[402185539,1768575045580,-500.0,0.00027397,120]
[402185540,1768575045590,-500.0,0.00027397,120]
[402185541,1768575045599,-500.0,0.00027397,120]
[402185542,1768575045608,-500.0,0.00027397,120]
[402185543,1768575045617,-500.0,0.00027397,120]
[402185544,1768575045627,-500.0,0.00027397,120]
[402185545,1768575045636,-500.0,0.00027397,120]
[402185546,1768575045645,-500.0,0.00027397,120]
[402185547,1768575045655,-500.0,0.00027397,120]
[402185548,1768575045664,-500.0,0.00027397,120]
[402185549,1768575045674,-500.0,0.00027397,120]
[402185550,1768575045684,-500.0,0.00027397,120]
[402185551,1768575045693,-500.0,0.00027397,120]
[402185552,1768575045702,-500.0,0.00027397,120]
[402185553,1768575045712,-500.0,0.00027397,120]
[402185554,1768575045721,-500.0,0.00027397,120]
[402185555,1768575045731,-258.37484061,0.00027397,120]
[402185556,1768575045741,-500.0,0.00027397,120]
[402185557,1768575045750,-500.0,0.00027397,120]
[402185558,1768575045759,-500.0,0.00027397,120]
[402185559,1768575045769,-500.0,0.00027397,120]
[402185560,1768575045778,-500.0,0.00027397,120]
[402185561,1768575045788,-500.0,0.00027397,120]
[402185562,1768575045798,-500.0,0.00027397,120]
[402185563,1768575045807,-500.0,0.00027397,120]
[402185564,1768575045816,-500.0,0.00027397,120]
[402185565,1768575045825,-500.0,0.00027397,120]
[402185566,1768575045835,-568.16723248,0.00027397,120]
[402185567,1768575045844,-500.0,0.00027397,120]
[402185568,1768575045854,-500.0,0.00027397,120]
[402185569,1768575045863,-500.0,0.00027397,120]
[402185570,1768575045873,-553.67434554,0.00027397,120]
[402185571,1768575045883,-500.0,0.00027397,120]
[402185572,1768575045893,-500.0,0.00027397,120]
[402185573,1768575045903,-500.0,0.00027397,120]
[402185574,1768575045914,-500.0,0.00027397,120]
[402185575,1768575045923,-500.0,0.00027397,120]
[402185576,1768575045932,-500.0,0.00027397,120]
[402185577,1768575045942,-500.0,0.00027397,120]
[402185578,1768575045951,-500.0,0.00027397,120]
[402185579,1768575045961,-500.0,0.00027397,120]
[402185580,1768575045971,-500.0,0.00027397,120]
[402185581,1768575045981,-500.0,0.00027397,120]
[402185582,1768575045991,-500.0,0.00027397,120]
[402185583,1768575046000,-500.0,0.00027397,120]
[402185584,1768575046010,-500.0,0.00027397,120]
[402185585,1768575046020,-500.0,0.00027397,120]
[402185586,1768575046030,-500.0,0.00027397,120]
[402185587,1768575046039,-500.0,0.00027397,120]
[402185588,1768575046049,-500.0,0.00027397,120]
[402185589,1768575046058,-187.28181207,0.00027397,120]
[402185590,1768575046068,-500.0,0.00027397,120]
[402185591,1768575046077,-500.0,0.00027397,120]
[402185592,1768575046087,-500.0,0.00027397,120]
[402185593,1768575046100,-500.0,0.00027397,120]
[402185594,1768575046110,-500.0,0.00027397,120]
[402185595,1768575046120,-500.0,0.00027397,120]
[402185597,1768575046130,-500.0,0.00027397,120]
[402185598,1768575046139,-581.56522157,0.00027397,120]
[402185600,1768575046149,-531.91667453,0.00027397,120]
[402185601,1768575046159,-500.0,0.00027397,120]
[402185603,1768575046169,-500.0,0.00027397,120]
[402185605,1768575046178,-500.0,0.00027397,120]
[402185608,1768575046355,-500.0,0.00027397,120]
[402185609,1768575046375,-500.0,0.00027397,120]
[402185610,1768575046384,-500.0,0.00027397,120]
[402185611,1768575046392,-500.0,0.00027397,120]
[402185612,1768575046401,-500.0,0.00027397,120]
[402185613,1768575046410,-500.0,0.00027397,120]
[402185614,1768575046419,-500.0,0.00027397,120]
[402185615,1768575046428,-500.0,0.00027397,120]
[402185616,1768575046438,-500.0,0.00027397,120]
[402185617,1768575046447,-500.0,0.00027397,120]
[402185618,1768575046456,-209.96339153,0.00027397,120]
[402185619,1768575046465,-500.0,0.00027397,120]
[402185620,1768575046476,-500.0,0.00027397,120]
[402185622,1768575046485,-500.0,0.00027397,120]
[402185623,1768575046494,-500.0,0.00027397,120]
[402185624,1768575046503,-500.0,0.00027397,120]
[402185625,1768575046512,-500.0,0.00027397,120]
[402185626,1768575046521,-500.0,0.00027397,120]
[402185627,1768575046530,-500.0,0.00027397,120]
[402185628,1768575046539,-500.0,0.00027397,120]
[402185629,1768575046549,-500.0,0.00027397,120]
[402185630,1768575046558,-500.0,0.00027397,120]
[402185631,1768575046567,-500.0,0.00027397,120]
[402185632,1768575046576,-567.54287636,0.00027397,120]
[402185633,1768575046586,-685.41,0.00027397,120]
[402185634,1768575046595,-685.41,0.00027397,120]
[402185635,1768575046604,-685.41,0.00027397,120]
[402185636,1768575046613,-685.41,0.00027397,120]
[402185637,1768575046622,-685.41,0.00027397,120]
[402185638,1768575046632,-685.41,0.00027397,120]
[402185639,1768575046642,-685.41,0.00027397,120]
[402185640,1768575046651,-685.41,0.00027397,120]
[402185641,1768575046660,-833.86,0.00027397,120]
[402185642,1768575046670,-833.86,0.00027397,120]
[402185643,1768575046679,-833.86,0.00027397,120]
[402185644,1768575046688,-833.86,0.00027397,120]
[402185645,1768575046697,-833.86,0.00027397,120]
[402185646,1768575046707,-833.86,0.00027397,120]
[402185647,1768575046716,-833.86,0.00027397,120]
[402185648,1768575046726,-833.86,0.00027397,120]
[402185649,1768575046735,-833.86,0.00027397,120]